[Event "Titled Tuesday Blitz August 16 Late 2022"]
[White "Zivkovic, Nemanja"]
[Black "Yanchenko, Roman"]
[WhiteFideId "942154"]
[BlackFideId "4137329"]
[WhiteElo "2372"]
[BlackElo "2514"]
[Result "0-1"]
[Round "08"]
[TimeControl "180+1"]
[Date "2022.08.16"]
[WhiteClock "0:00:24"]
[BlackClock "0:01:10"]

1. e4 {[%clk 0:02:55]}  e6 {[%clk 0:03:00]} 2. d4 {[%clk 0:02:53]}  d5 {[%clk 0:03:01]} 3. Nd2 {[%clk 0:02:53]}  c5 {[%clk 0:03:01]} 4. Ngf3 {[%clk 0:02:53]}  Nc6 {[%clk 0:03:01]} 5. exd5 {[%clk 0:02:51]}  exd5 {[%clk 0:03:02]} 6. Bb5 {[%clk 0:02:50]}  c4 {[%clk 0:03:02]} 7. O-O {[%clk 0:02:48]}  Bd6 {[%clk 0:03:03]} 8. Re1+ {[%clk 0:02:46]}  Ne7 {[%clk 0:03:03]} 9. b3 {[%clk 0:02:42]}  cxb3 {[%clk 0:03:04]} 10. axb3 {[%clk 0:02:42]}  O-O {[%clk 0:03:04]} 11. Ba3 {[%clk 0:02:34]}  Bxa3 {[%clk 0:03:03]} 12. Rxa3 {[%clk 0:02:35]}  Bf5 {[%clk 0:03:03]} 13. c3 {[%clk 0:02:29]}  Qd6 {[%clk 0:03:02]} 14. Ra1 {[%clk 0:02:23]}  a6 {[%clk 0:03:02]} 15. Bxc6 {[%clk 0:02:13]}  Nxc6 {[%clk 0:03:03]} 16. Ne5 {[%clk 0:02:12]}  Rac8 {[%clk 0:02:56]} 17. Nxc6 {[%clk 0:01:59]}  Rxc6 {[%clk 0:02:57]} 18. Re3 {[%clk 0:01:59]}  Rfc8 {[%clk 0:02:54]} 19. Rc1 {[%clk 0:01:57]}  Qh6 {[%clk 0:02:37]} 20. Qe1 {[%clk 0:01:45]}  Be6 {[%clk 0:02:32]} 21. Nf3 {[%clk 0:01:18]}  R6c7 {[%clk 0:02:18]} 22. Ne5 {[%clk 0:01:16]}  Qh4 {[%clk 0:02:14]} 23. h3 {[%clk 0:01:08]}  h6 {[%clk 0:02:13]} 24. Rd1 {[%clk 0:01:05]}  a5 {[%clk 0:02:04]} 25. Ra1 {[%clk 0:00:59]}  b6 {[%clk 0:02:03]} 26. Rd1 {[%clk 0:00:54]}  Qf4 {[%clk 0:01:54]} 27. Rf3 {[%clk 0:00:53]}  Qg5 {[%clk 0:01:49]} 28. Rg3 {[%clk 0:00:53]}  Qh4 {[%clk 0:01:49]} 29. Re3 {[%clk 0:00:53]}  Kh7 {[%clk 0:01:47]} 30. Qd2 {[%clk 0:00:51]}  Bf5 {[%clk 0:01:41]} 31. c4 {[%clk 0:00:47]}  dxc4 {[%clk 0:01:36]} 32. bxc4 {[%clk 0:00:48]}  f6 {[%clk 0:01:33]} 33. Nf3 {[%clk 0:00:47]}  Qf4 {[%clk 0:01:33]} 34. Qb2 {[%clk 0:00:41]}  Qd6 {[%clk 0:01:26]} 35. Rb3 {[%clk 0:00:37]}  Rxc4 {[%clk 0:01:15]} 36. Rxb6 {[%clk 0:00:37]}  Qf4 {[%clk 0:01:15]} 37. Qb5 {[%clk 0:00:32]}  Bxh3 {[%clk 0:01:13]} 38. Qxa5 {[%clk 0:00:25]}  Bxg2 {[%clk 0:01:11]} 39. Kxg2 {[%clk 0:00:24]}  Qg4+ {[%clk 0:01:11]} 40. Kf1 {[%clk 0:00:24]}  Qxf3 {[%clk 0:01:10]} 0-1


[Site "https://www.chess.com"]

[Event "Titled Tuesday Blitz August 16 Late 2022"]
[White "Arnold, Ken"]
[Black "Graif, William"]
[WhiteFideId "2056836"]
[BlackFideId "2609835"]
[WhiteElo "2391"]
[BlackElo "1942"]
[Result "1-0"]
[Round "09"]
[TimeControl "180+1"]
[Date "2022.08.18"]
[WhiteClock "0:00:00"]
[BlackClock "0:00:00"]

1. d4 {[%clk 0:00:00]}  Nf6 {[%clk 0:00:00]} 2. c4 {[%clk 0:00:00]}  e5 {[%clk 0:00:00]} 3. dxe5 {[%clk 0:00:00]}  Ng4 {[%clk 0:00:00]} 4. Nf3 {[%clk 0:00:00]}  Nc6 {[%clk 0:00:00]} 5. e3 {[%clk 0:00:00]}  g6 {[%clk 0:00:00]} 6. Be2 {[%clk 0:00:00]}  Bg7 {[%clk 0:00:00]} 7. h3 {[%clk 0:00:00]}  Ngxe5 {[%clk 0:00:00]} 8. Nbd2 {[%clk 0:00:00]}  O-O {[%clk 0:00:00]} 9. O-O {[%clk 0:00:00]}  d5 {[%clk 0:00:00]} 10. cxd5 {[%clk 0:00:00]}  Qxd5 {[%clk 0:00:00]} 11. Nxe5 {[%clk 0:00:00]}  Nxe5 {[%clk 0:00:00]} 12. Nf3 {[%clk 0:00:00]}  Rd8 {[%clk 0:00:00]} 13. Qc2 {[%clk 0:00:00]}  Bf5 {[%clk 0:00:00]} 14. Qb3 {[%clk 0:00:00]}  Bd3 {[%clk 0:00:00]} 15. Bxd3 {[%clk 0:00:00]}  Nxf3+ {[%clk 0:00:00]} 16. gxf3 {[%clk 0:00:00]}  Qxf3 {[%clk 0:00:00]} 17. Bc4 {[%clk 0:00:00]}  Qxh3 {[%clk 0:00:00]} 18. Bxf7+ {[%clk 0:00:00]}  Kh8 {[%clk 0:00:00]} 19. Be6 {[%clk 0:00:00]}  Qf3 {[%clk 0:00:00]} 20. Qc4 {[%clk 0:00:00]}  Be5 {[%clk 0:00:00]} 21. Qg4 {[%clk 0:00:00]}  Qf6 {[%clk 0:00:00]} 22. Bc4 {[%clk 0:00:00]}  h5 {[%clk 0:00:00]} 23. Qg2 {[%clk 0:00:00]}  Rd6 {[%clk 0:00:00]} 24. f4 {[%clk 0:00:00]}  Bd4 {[%clk 0:00:00]} 25. exd4 {[%clk 0:00:00]}  Qxd4+ {[%clk 0:00:00]} 26. Kh1 {[%clk 0:00:00]}  Qxc4 {[%clk 0:00:00]} 27. f5 {[%clk 0:00:00]}  Rad8 {[%clk 0:00:00]} 28. Bf4 {[%clk 0:00:00]}  Rd4 {[%clk 0:00:00]} 29. Be5+ {[%clk 0:00:00]}  Kh7 {[%clk 0:00:00]} 30. Qxg6# {[%clk 0:00:00]} 1-0


[Site "https://www.chess.com"]

[Event "Titled Tuesday Blitz August 16 Late 2022"]
[White "Bilych, Olexiy"]
[Black "Akbas, Umut Ata"]
[WhiteFideId "14156504"]
[BlackFideId "44572646"]
[WhiteElo "2157"]
[BlackElo "1654"]
[Result "1-0"]
[Round "09"]
[TimeControl "180+1"]
[Date "2022.08.16"]
[WhiteClock "0:00:09"]
[BlackClock "0:00:17"]

1. e4 {[%clk 0:03:00]}  e5 {[%clk 0:02:39]} 2. Nf3 {[%clk 0:02:54]}  Nc6 {[%clk 0:02:15]} 3. Bc4 {[%clk 0:02:54]}  Bc5 {[%clk 0:02:14]} 4. c3 {[%clk 0:02:54]}  Nf6 {[%clk 0:02:14]} 5. d3 {[%clk 0:02:54]}  O-O {[%clk 0:02:14]} 6. O-O {[%clk 0:02:55]}  d5 {[%clk 0:02:13]} 7. exd5 {[%clk 0:02:55]}  Nxd5 {[%clk 0:02:14]} 8. Nbd2 {[%clk 0:02:55]}  Bg4 {[%clk 0:02:13]} 9. Re1 {[%clk 0:02:54]}  Re8 {[%clk 0:02:03]} 10. h3 {[%clk 0:02:51]}  Bh5 {[%clk 0:02:02]} 11. Ne4 {[%clk 0:02:49]}  Bb6 {[%clk 0:01:56]} 12. Ng3 {[%clk 0:02:39]}  Bg6 {[%clk 0:01:52]} 13. d4 {[%clk 0:02:15]}  e4 {[%clk 0:01:44]} 14. Bxd5 {[%clk 0:01:38]}  Qxd5 {[%clk 0:01:41]} 15. Nh4 {[%clk 0:01:39]}  Ne7 {[%clk 0:01:27]} 16. Be3 {[%clk 0:01:17]}  Rad8 {[%clk 0:01:16]} 17. Nxg6 {[%clk 0:01:10]}  Nxg6 {[%clk 0:01:15]} 18. Qg4 {[%clk 0:01:08]}  c6 {[%clk 0:01:06]} 19. Nf5 {[%clk 0:01:03]}  Qe6 {[%clk 0:01:01]} 20. h4 {[%clk 0:00:59]}  Rd5 {[%clk 0:00:59]} 21. h5 {[%clk 0:00:53]}  Qxf5 {[%clk 0:00:59]} 22. Qxf5 {[%clk 0:00:52]}  Rxf5 {[%clk 0:01:00]} 23. hxg6 {[%clk 0:00:53]}  hxg6 {[%clk 0:01:01]} 24. c4 {[%clk 0:00:39]}  Ra5 {[%clk 0:00:49]} 25. c5 {[%clk 0:00:33]}  Bc7 {[%clk 0:00:49]} 26. a4 {[%clk 0:00:32]}  f5 {[%clk 0:00:42]} 27. b4 {[%clk 0:00:31]}  Ra6 {[%clk 0:00:42]} 28. b5 {[%clk 0:00:27]}  cxb5 {[%clk 0:00:39]} 29. axb5 {[%clk 0:00:28]}  Rxa1 {[%clk 0:00:39]} 30. Rxa1 {[%clk 0:00:29]}  Bb8 {[%clk 0:00:36]} 31. d5 {[%clk 0:00:25]}  Rd8 {[%clk 0:00:21]} 32. d6 {[%clk 0:00:23]}  b6 {[%clk 0:00:22]} 33. cxb6 {[%clk 0:00:18]}  axb6 {[%clk 0:00:22]} 34. Ra8 {[%clk 0:00:14]}  Bc7 {[%clk 0:00:22]} 35. dxc7 {[%clk 0:00:07]}  Rxa8 {[%clk 0:00:22]} 36. Bxb6 {[%clk 0:00:08]}  Kf7 {[%clk 0:00:20]} 37. Ba7 {[%clk 0:00:08]}  Ke6 {[%clk 0:00:19]} 38. b6 {[%clk 0:00:08]}  Kd7 {[%clk 0:00:17]} 39. b7 {[%clk 0:00:09]} 1-0


[Site "https://www.chess.com"]

[Event "Titled Tuesday Blitz August 16 Late 2022"]
[White "Blanco Ronquillo, Humberto L."]
[Black "Zenin, Dmitry"]
[WhiteFideId "3504239"]
[BlackFideId "4127897"]
[WhiteElo "2425"]
[BlackElo "2215"]
[Result "1/2-1/2"]
[Round "09"]
[TimeControl "180+1"]
[Date "2022.08.18"]
[WhiteClock "0:00:00"]
[BlackClock "0:00:00"]

1. d4 {[%clk 0:00:00]}  Nf6 {[%clk 0:00:00]} 2. c4 {[%clk 0:00:00]}  g6 {[%clk 0:00:00]} 3. Nc3 {[%clk 0:00:00]}  Bg7 {[%clk 0:00:00]} 4. e4 {[%clk 0:00:00]}  d6 {[%clk 0:00:00]} 5. Nf3 {[%clk 0:00:00]}  O-O {[%clk 0:00:00]} 6. d5 {[%clk 0:00:00]}  c6 {[%clk 0:00:00]} 7. h3 {[%clk 0:00:00]}  e6 {[%clk 0:00:00]} 8. Be2 {[%clk 0:00:00]}  exd5 {[%clk 0:00:00]} 9. exd5 {[%clk 0:00:00]}  cxd5 {[%clk 0:00:00]} 10. cxd5 {[%clk 0:00:00]}  Na6 {[%clk 0:00:00]} 11. O-O {[%clk 0:00:00]}  Nc5 {[%clk 0:00:00]} 12. Be3 {[%clk 0:00:00]}  Bd7 {[%clk 0:00:00]} 13. Rc1 {[%clk 0:00:00]}  Rc8 {[%clk 0:00:00]} 14. Bd4 {[%clk 0:00:00]}  Re8 {[%clk 0:00:00]} 15. Re1 {[%clk 0:00:00]}  a6 {[%clk 0:00:00]} 16. b4 {[%clk 0:00:00]}  Nce4 {[%clk 0:00:00]} 17. Nxe4 {[%clk 0:00:00]}  Rxe4 {[%clk 0:00:00]} 18. Rxc8 {[%clk 0:00:00]}  Bxc8 {[%clk 0:00:00]} 19. Qd2 {[%clk 0:00:00]}  Qe8 {[%clk 0:00:00]} 20. Bc4 {[%clk 0:00:00]}  Rxe1+ {[%clk 0:00:00]} 21. Qxe1 {[%clk 0:00:00]}  Qxe1+ {[%clk 0:00:00]} 22. Nxe1 {[%clk 0:00:00]}  Bf5 {[%clk 0:00:00]} 23. f3 {[%clk 0:00:00]}  h5 {[%clk 0:00:00]} 24. g4 {[%clk 0:00:00]}  hxg4 {[%clk 0:00:00]} 25. hxg4 {[%clk 0:00:00]}  Bb1 {[%clk 0:00:00]} 26. Kf2 {[%clk 0:00:00]}  g5 {[%clk 0:00:00]} 27. Ke3 {[%clk 0:00:00]}  Nd7 {[%clk 0:00:00]} 28. Bxg7 {[%clk 0:00:00]}  Kxg7 {[%clk 0:00:00]} 29. f4 {[%clk 0:00:00]}  Kf6 {[%clk 0:00:00]} 30. Bb3 {[%clk 0:00:00]}  gxf4+ {[%clk 0:00:00]} 31. Kxf4 {[%clk 0:00:00]}  Ne5 {[%clk 0:00:00]} 32. a3 {[%clk 0:00:00]}  b6 {[%clk 0:00:00]} 33. Bd1 {[%clk 0:00:00]}  Ba2 {[%clk 0:00:00]} 34. g5+ {[%clk 0:00:00]}  Ke7 {[%clk 0:00:00]} 35. Nf3 {[%clk 0:00:00]}  Nd3+ {[%clk 0:00:00]} 36. Ke3 {[%clk 0:00:00]}  Nb2 {[%clk 0:00:00]} 37. Be2 {[%clk 0:00:00]}  a5 {[%clk 0:00:00]} 38. Nd2 {[%clk 0:00:00]}  Bxd5 {[%clk 0:00:00]} 39. Kd4 {[%clk 0:00:00]}  Be6 {[%clk 0:00:00]} 40. Bb5 {[%clk 0:00:00]}  axb4 {[%clk 0:00:00]} 41. axb4 {[%clk 0:00:00]}  Nd1 {[%clk 0:00:00]} 42. Ne4 {[%clk 0:00:00]}  Bf5 {[%clk 0:00:00]} 43. Nf6 {[%clk 0:00:00]}  Be6 {[%clk 0:00:00]} 44. Ne4 {[%clk 0:00:00]}  Bf5 {[%clk 0:00:00]} 45. Ng3 {[%clk 0:00:00]}  Bg6 {[%clk 0:00:00]} 46. Be2 {[%clk 0:00:00]}  Nb2 {[%clk 0:00:00]} 47. Kc3 {[%clk 0:00:00]}  Na4+ {[%clk 0:00:00]} 48. Kb3 {[%clk 0:00:00]}  b5 {[%clk 0:00:00]} 49. Bxb5 {[%clk 0:00:00]}  Nb6 {[%clk 0:00:00]} 50. Be2 {[%clk 0:00:00]}  d5 {[%clk 0:00:00]} 51. Kc3 {[%clk 0:00:00]}  Kd6 {[%clk 0:00:00]} 52. Kd4 {[%clk 0:00:00]}  Na4 {[%clk 0:00:00]} 53. Bd3 {[%clk 0:00:00]}  Nb6 {[%clk 0:00:00]} 54. Bxg6 {[%clk 0:00:00]}  fxg6 {[%clk 0:00:00]} 55. Ne2 {[%clk 0:00:00]}  Nd7 {[%clk 0:00:00]} 56. Nf4 {[%clk 0:00:00]}  Ne5 {[%clk 0:00:00]} 57. Nxd5 {[%clk 0:00:00]}  Nf3+ {[%clk 0:00:00]} 58. Kc4 {[%clk 0:00:00]}  Nxg5 {[%clk 0:00:00]} 59. Nf4 {[%clk 0:00:00]}  Ne4 {[%clk 0:00:00]} 60. Nxg6 {[%clk 0:00:00]}  Kc6 {[%clk 0:00:00]} 61. Ne5+ {[%clk 0:00:00]}  Kb6 {[%clk 0:00:00]} 62. Nd3 {[%clk 0:00:00]}  Nd6+ {[%clk 0:00:00]} 63. Kb3 {[%clk 0:00:00]}  Kb5 {[%clk 0:00:00]} 64. Ne5 {[%clk 0:00:00]}  Nf5 {[%clk 0:00:00]} 65. Nf3 {[%clk 0:00:00]}  Ne3 {[%clk 0:00:00]} 66. Nd4+ {[%clk 0:00:00]}  Kb6 {[%clk 0:00:00]} 1/2-1/2


[Site "https://www.chess.com"]

[Event "Titled Tuesday Blitz August 16 Late 2022"]
[White "Boros, Denes"]
[Black "Ibarra Jerez, Jose Carlos"]
[WhiteFideId "722340"]
[BlackFideId "2226332"]
[WhiteElo "2464"]
[BlackElo "2628"]
[Result "0-1"]
[Round "09"]
[TimeControl "180+1"]
[Date "2022.08.16"]
[WhiteClock "0:00:58"]
[BlackClock "0:00:19"]

1. g3 {[%clk 0:03:00]}  Nf6 {[%clk 0:02:59]} 2. Bg2 {[%clk 0:03:01]}  g6 {[%clk 0:03:00]} 3. e4 {[%clk 0:02:59]}  d6 {[%clk 0:03:00]} 4. b3 {[%clk 0:02:56]}  Bg7 {[%clk 0:02:59]} 5. Bb2 {[%clk 0:02:56]}  O-O {[%clk 0:02:59]} 6. Ne2 {[%clk 0:02:56]}  c5 {[%clk 0:02:58]} 7. O-O {[%clk 0:02:55]}  Nc6 {[%clk 0:02:58]} 8. d4 {[%clk 0:02:54]}  cxd4 {[%clk 0:02:56]} 9. Nxd4 {[%clk 0:02:55]}  Bg4 {[%clk 0:02:54]} 10. Qd3 {[%clk 0:02:53]}  Rc8 {[%clk 0:02:50]} 11. c4 {[%clk 0:02:51]}  Qa5 {[%clk 0:02:34]} 12. Nxc6 {[%clk 0:02:49]}  bxc6 {[%clk 0:02:32]} 13. h3 {[%clk 0:02:47]}  Be6 {[%clk 0:02:26]} 14. Nd2 {[%clk 0:02:45]}  Qh5 {[%clk 0:02:07]} 15. g4 {[%clk 0:02:27]}  Bxg4 {[%clk 0:02:05]} 16. Bxf6 {[%clk 0:02:14]}  Be2 {[%clk 0:01:56]} 17. Qe3 {[%clk 0:01:56]}  Bxf6 {[%clk 0:01:53]} 18. Rae1 {[%clk 0:01:52]}  Bxf1 {[%clk 0:01:52]} 19. Nxf1 {[%clk 0:01:53]}  c5 {[%clk 0:01:50]} 20. Ng3 {[%clk 0:01:52]}  Qh4 {[%clk 0:01:49]} 21. Qf3 {[%clk 0:01:52]}  Be5 {[%clk 0:01:45]} 22. Rd1 {[%clk 0:01:50]}  e6 {[%clk 0:01:43]} 23. Ne2 {[%clk 0:01:48]}  f5 {[%clk 0:01:40]} 24. Qe3 {[%clk 0:01:45]}  fxe4 {[%clk 0:01:04]} 25. Bxe4 {[%clk 0:01:45]}  Rf6 {[%clk 0:01:04]} 26. Bg2 {[%clk 0:01:30]}  Rcf8 {[%clk 0:01:02]} 27. Rf1 {[%clk 0:01:31]}  Bd4 {[%clk 0:01:00]} 28. Nxd4 {[%clk 0:01:30]}  Qxd4 {[%clk 0:01:00]} 29. Qe2 {[%clk 0:01:30]}  Kg7 {[%clk 0:00:58]} 30. Be4 {[%clk 0:01:29]}  Qe5 {[%clk 0:00:52]} 31. Qd3 {[%clk 0:01:28]}  Rf4 {[%clk 0:00:51]} 32. Bg2 {[%clk 0:01:27]}  Qd4 {[%clk 0:00:49]} 33. Qg3 {[%clk 0:01:24]}  R8f6 {[%clk 0:00:48]} 34. Bc6 {[%clk 0:01:21]}  d5 {[%clk 0:00:44]} 35. Bb7 {[%clk 0:01:13]}  dxc4 {[%clk 0:00:39]} 36. bxc4 {[%clk 0:01:14]}  Qxc4 {[%clk 0:00:39]} 37. Rd1 {[%clk 0:01:09]}  Rxf2 {[%clk 0:00:36]} 38. Rd7+ {[%clk 0:01:09]}  Kh6 {[%clk 0:00:27]} 39. Qe3+ {[%clk 0:01:03]}  Qf4 {[%clk 0:00:24]} 40. Qxf4+ {[%clk 0:01:02]}  R6xf4 {[%clk 0:00:21]} 41. Bg2 {[%clk 0:00:59]}  Rxa2 {[%clk 0:00:19]} 42. Bf1 {[%clk 0:00:58]}  Ra1 {[%clk 0:00:19]} 0-1


[Site "https://www.chess.com"]

[Event "Titled Tuesday Blitz August 16 Late 2022"]
[White "Bringas Gomez, Artai"]
[Black "Hoffmann, Asa"]
[WhiteFideId "24534064"]
[BlackFideId "2001470"]
[WhiteElo "2039"]
[BlackElo "2117"]
[Result "0-1"]
[Round "09"]
[TimeControl "180+1"]
[Date "2022.08.18"]
[WhiteClock "0:00:00"]
[BlackClock "0:00:00"]

1. e4 {[%clk 0:00:00]}  d6 {[%clk 0:00:00]} 2. c4 {[%clk 0:00:00]}  c6 {[%clk 0:00:00]} 3. d4 {[%clk 0:00:00]}  e5 {[%clk 0:00:00]} 4. Nc3 {[%clk 0:00:00]}  Nf6 {[%clk 0:00:00]} 5. f3 {[%clk 0:00:00]}  Nbd7 {[%clk 0:00:00]} 6. Nge2 {[%clk 0:00:00]}  Be7 {[%clk 0:00:00]} 7. Be3 {[%clk 0:00:00]}  a6 {[%clk 0:00:00]} 8. Qd2 {[%clk 0:00:00]}  b5 {[%clk 0:00:00]} 9. O-O-O {[%clk 0:00:00]}  Qc7 {[%clk 0:00:00]} 10. Ng3 {[%clk 0:00:00]}  g6 {[%clk 0:00:00]} 11. Kb1 {[%clk 0:00:00]}  h5 {[%clk 0:00:00]} 12. h4 {[%clk 0:00:00]}  b4 {[%clk 0:00:00]} 13. Nce2 {[%clk 0:00:00]}  a5 {[%clk 0:00:00]} 14. Nc1 {[%clk 0:00:00]}  c5 {[%clk 0:00:00]} 15. dxc5 {[%clk 0:00:00]}  Nxc5 {[%clk 0:00:00]} 16. Be2 {[%clk 0:00:00]}  Be6 {[%clk 0:00:00]} 17. Bg5 {[%clk 0:00:00]}  Rb8 {[%clk 0:00:00]} 18. Nf1 {[%clk 0:00:00]}  Nfd7 {[%clk 0:00:00]} 19. Bxe7 {[%clk 0:00:00]}  Kxe7 {[%clk 0:00:00]} 20. Ne3 {[%clk 0:00:00]}  Nb6 {[%clk 0:00:00]} 21. Nd3 {[%clk 0:00:00]}  Nba4 {[%clk 0:00:00]} 22. Nxc5 {[%clk 0:00:00]}  Qxc5 {[%clk 0:00:00]} 23. Ka1 {[%clk 0:00:00]}  Rhd8 {[%clk 0:00:00]} 24. g4 {[%clk 0:00:00]}  Nb6 {[%clk 0:00:00]} 25. gxh5 {[%clk 0:00:00]}  gxh5 {[%clk 0:00:00]} 26. Rhg1 {[%clk 0:00:00]}  Bxc4 {[%clk 0:00:00]} 27. Rc1 {[%clk 0:00:00]}  d5 {[%clk 0:00:00]} 28. exd5 {[%clk 0:00:00]}  Nxd5 {[%clk 0:00:00]} 29. Nxc4 {[%clk 0:00:00]}  Nf4 {[%clk 0:00:00]} 30. Qe1 {[%clk 0:00:00]}  Rbc8 {[%clk 0:00:00]} 31. Rg5 {[%clk 0:00:00]}  f6 {[%clk 0:00:00]} 32. Rg7+ {[%clk 0:00:00]}  Ke6 {[%clk 0:00:00]} 33. Bf1 {[%clk 0:00:00]}  Rd4 {[%clk 0:00:00]} 34. b3 {[%clk 0:00:00]}  a4 {[%clk 0:00:00]} 35. Rd1 {[%clk 0:00:00]}  axb3 {[%clk 0:00:00]} 36. axb3 {[%clk 0:00:00]}  Rcd8 {[%clk 0:00:00]} 37. Rxd4 {[%clk 0:00:00]}  Qxd4+ {[%clk 0:00:00]} 38. Kb1 {[%clk 0:00:00]}  Ra8 {[%clk 0:00:00]} 39. Nb2 {[%clk 0:00:00]}  Ra3 {[%clk 0:00:00]} 40. Bc4+ {[%clk 0:00:00]}  Kd6 {[%clk 0:00:00]} 41. Qc1 {[%clk 0:00:00]}  Nd5 {[%clk 0:00:00]} 42. Rg1 {[%clk 0:00:00]}  Nc3+ {[%clk 0:00:00]} 43. Kc2 {[%clk 0:00:00]}  Qf2+ {[%clk 0:00:00]} 44. Qd2+ {[%clk 0:00:00]}  Qxd2+ {[%clk 0:00:00]} 45. Kxd2 {[%clk 0:00:00]}  Ra2 {[%clk 0:00:00]} 46. Kc2 {[%clk 0:00:00]}  f5 {[%clk 0:00:00]} 47. Rg6+ {[%clk 0:00:00]}  Kc5 {[%clk 0:00:00]} 48. Rg5 {[%clk 0:00:00]}  Ne2 {[%clk 0:00:00]} 49. Rxf5 {[%clk 0:00:00]}  Nd4+ {[%clk 0:00:00]} 50. Kd3 {[%clk 0:00:00]}  Nxf5 {[%clk 0:00:00]} 51. Kc2 {[%clk 0:00:00]}  Nxh4 {[%clk 0:00:00]} 52. Kb1 {[%clk 0:00:00]}  Rxb2+ {[%clk 0:00:00]} 53. Kxb2 {[%clk 0:00:00]}  Nxf3 {[%clk 0:00:00]} 54. Kc2 {[%clk 0:00:00]}  Kd4 {[%clk 0:00:00]} 55. Kd1 {[%clk 0:00:00]}  e4 {[%clk 0:00:00]} 56. Ke2 {[%clk 0:00:00]}  h4 {[%clk 0:00:00]} 57. Be6 {[%clk 0:00:00]}  Ng5 {[%clk 0:00:00]} 58. Bf5 {[%clk 0:00:00]}  h3 {[%clk 0:00:00]} 59. Kf2 {[%clk 0:00:00]}  e3+ {[%clk 0:00:00]} 60. Kg3 {[%clk 0:00:00]}  h2 {[%clk 0:00:00]} 61. Kxh2 {[%clk 0:00:00]}  e2 {[%clk 0:00:00]} 62. Bg4 {[%clk 0:00:00]}  e1=Q {[%clk 0:00:00]} 0-1


[Site "https://www.chess.com"]

[Event "Titled Tuesday Blitz August 16 Late 2022"]
[White "Burke, Paul"]
[Black "Tarnowska, Aleksandra"]
[WhiteFideId "2605767"]
[BlackFideId "1180967"]
[WhiteElo "1918"]
[BlackElo "1700"]
[Result "0-1"]
[Round "09"]
[TimeControl "180+1"]
[Date "2022.08.18"]
[WhiteClock "0:00:00"]
[BlackClock "0:00:00"]

1. e4 {[%clk 0:00:00]}  c5 {[%clk 0:00:00]} 2. d4 {[%clk 0:00:00]}  cxd4 {[%clk 0:00:00]} 3. c3 {[%clk 0:00:00]}  d5 {[%clk 0:00:00]} 4. exd5 {[%clk 0:00:00]}  Qxd5 {[%clk 0:00:00]} 5. cxd4 {[%clk 0:00:00]}  Nf6 {[%clk 0:00:00]} 6. Nf3 {[%clk 0:00:00]}  e6 {[%clk 0:00:00]} 7. Nc3 {[%clk 0:00:00]}  Qd6 {[%clk 0:00:00]} 8. Be2 {[%clk 0:00:00]}  Be7 {[%clk 0:00:00]} 9. O-O {[%clk 0:00:00]}  O-O {[%clk 0:00:00]} 10. h3 {[%clk 0:00:00]}  Nc6 {[%clk 0:00:00]} 11. Be3 {[%clk 0:00:00]}  a6 {[%clk 0:00:00]} 12. Qd2 {[%clk 0:00:00]}  b5 {[%clk 0:00:00]} 13. Bf4 {[%clk 0:00:00]}  Qd7 {[%clk 0:00:00]} 14. Ne5 {[%clk 0:00:00]}  Nxe5 {[%clk 0:00:00]} 15. dxe5 {[%clk 0:00:00]}  Qxd2 {[%clk 0:00:00]} 16. Bxd2 {[%clk 0:00:00]}  Nd7 {[%clk 0:00:00]} 17. f4 {[%clk 0:00:00]}  Bb7 {[%clk 0:00:00]} 18. Bf3 {[%clk 0:00:00]}  Bxf3 {[%clk 0:00:00]} 19. Rxf3 {[%clk 0:00:00]}  Nc5 {[%clk 0:00:00]} 20. Be3 {[%clk 0:00:00]}  Rfd8 {[%clk 0:00:00]} 21. Rff1 {[%clk 0:00:00]}  Rd3 {[%clk 0:00:00]} 22. Bf2 {[%clk 0:00:00]}  Rad8 {[%clk 0:00:00]} 23. Rad1 {[%clk 0:00:00]}  h6 {[%clk 0:00:00]} 24. Rxd3 {[%clk 0:00:00]}  Nxd3 {[%clk 0:00:00]} 25. Rd1 {[%clk 0:00:00]}  Nxb2 {[%clk 0:00:00]} 26. Rxd8+ {[%clk 0:00:00]}  Bxd8 {[%clk 0:00:00]} 27. Ne4 {[%clk 0:00:00]}  Nd3 {[%clk 0:00:00]} 28. Be3 {[%clk 0:00:00]}  f6 {[%clk 0:00:00]} 29. exf6 {[%clk 0:00:00]}  gxf6 {[%clk 0:00:00]} 30. Nd6 {[%clk 0:00:00]}  Bc7 {[%clk 0:00:00]} 31. Ne4 {[%clk 0:00:00]}  f5 {[%clk 0:00:00]} 32. Nf6+ {[%clk 0:00:00]}  Kf7 {[%clk 0:00:00]} 33. Nh5 {[%clk 0:00:00]}  Kg6 {[%clk 0:00:00]} 34. g4 {[%clk 0:00:00]}  a5 {[%clk 0:00:00]} 35. Kg2 {[%clk 0:00:00]}  b4 {[%clk 0:00:00]} 36. Kf3 {[%clk 0:00:00]}  a4 {[%clk 0:00:00]} 37. Bd4 {[%clk 0:00:00]}  b3 {[%clk 0:00:00]} 38. axb3 {[%clk 0:00:00]}  axb3 {[%clk 0:00:00]} 39. Ke3 {[%clk 0:00:00]}  b2 {[%clk 0:00:00]} 40. Bxb2 {[%clk 0:00:00]}  Nxb2 {[%clk 0:00:00]} 41. Kd4 {[%clk 0:00:00]}  Na4 {[%clk 0:00:00]} 42. Kc4 {[%clk 0:00:00]}  Nb6+ {[%clk 0:00:00]} 43. Kb5 {[%clk 0:00:00]}  Nd5 {[%clk 0:00:00]} 44. Kc6 {[%clk 0:00:00]}  Bxf4 {[%clk 0:00:00]} 45. Nxf4+ {[%clk 0:00:00]}  Nxf4 {[%clk 0:00:00]} 46. gxf5+ {[%clk 0:00:00]}  exf5 {[%clk 0:00:00]} 0-1


[Site "https://www.chess.com"]

[Event "Titled Tuesday Blitz August 16 Late 2022"]
[White "Carbone, Diego"]
[Black "Remolar Gallen, Jose"]
[WhiteFideId "3002179"]
[BlackFideId "2215187"]
[WhiteElo "2199"]
[BlackElo "2205"]
[Result "1-0"]
[Round "09"]
[TimeControl "180+1"]
[Date "2022.08.18"]
[WhiteClock "0:00:00"]
[BlackClock "0:00:00"]

1. d4 {[%clk 0:00:00]}  Nf6 {[%clk 0:00:00]} 2. c4 {[%clk 0:00:00]}  g6 {[%clk 0:00:00]} 3. g3 {[%clk 0:00:00]}  Bg7 {[%clk 0:00:00]} 4. Bg2 {[%clk 0:00:00]}  c6 {[%clk 0:00:00]} 5. Nf3 {[%clk 0:00:00]}  d5 {[%clk 0:00:00]} 6. cxd5 {[%clk 0:00:00]}  cxd5 {[%clk 0:00:00]} 7. O-O {[%clk 0:00:00]}  O-O {[%clk 0:00:00]} 8. Ne5 {[%clk 0:00:00]}  Nc6 {[%clk 0:00:00]} 9. Nxc6 {[%clk 0:00:00]}  bxc6 {[%clk 0:00:00]} 10. Nc3 {[%clk 0:00:00]}  Bf5 {[%clk 0:00:00]} 11. Bf4 {[%clk 0:00:00]}  Rc8 {[%clk 0:00:00]} 12. Na4 {[%clk 0:00:00]}  Ne4 {[%clk 0:00:00]} 13. Rc1 {[%clk 0:00:00]}  Qa5 {[%clk 0:00:00]} 14. a3 {[%clk 0:00:00]}  Rfe8 {[%clk 0:00:00]} 15. b4 {[%clk 0:00:00]}  Qa6 {[%clk 0:00:00]} 16. Re1 {[%clk 0:00:00]}  e5 {[%clk 0:00:00]} 17. dxe5 {[%clk 0:00:00]}  Bxe5 {[%clk 0:00:00]} 18. Bxe5 {[%clk 0:00:00]}  Rxe5 {[%clk 0:00:00]} 19. e3 {[%clk 0:00:00]}  Rce8 {[%clk 0:00:00]} 20. Bf1 {[%clk 0:00:00]}  Qc8 {[%clk 0:00:00]} 21. Qd4 {[%clk 0:00:00]}  Ng5 {[%clk 0:00:00]} 22. Bg2 {[%clk 0:00:00]}  Bh3 {[%clk 0:00:00]} 23. Qh4 {[%clk 0:00:00]}  Bxg2 {[%clk 0:00:00]} 24. Kxg2 {[%clk 0:00:00]}  Qf5 {[%clk 0:00:00]} 25. Nc5 {[%clk 0:00:00]}  Qf3+ {[%clk 0:00:00]} 26. Kg1 {[%clk 0:00:00]}  Rf5 {[%clk 0:00:00]} 27. Nd3 {[%clk 0:00:00]}  Re4 {[%clk 0:00:00]} 28. Nf4 {[%clk 0:00:00]} 1-0


[Site "https://www.chess.com"]